fUST/lending_fUST_20240803
["ID","MTS","AMOUNT","RATE_DAILY","PERIOD"]
[333995919,1722669045255,-382.511128,0.00013698,2]
[333995920,1722669045267,-446.06924503,0.00013698,2]
[333995921,1722669045280,-382.511128,0.00013698,2]
[333995922,1722669045292,-382.511128,0.00013698,2]
[333995923,1722669045304,-500.0,0.00013698,2]
[333995924,1722669045316,-151.005967,0.00013698,2]
[333995925,1722669045328,-500.0,0.00013698,2]
[333995926,1722669045346,-5937.86,0.00013698,2]
[333995927,1722669045358,-1459.1,0.00013698,2]
[333995928,1722669045371,-500.0,0.00013698,2]
[333995929,1722669045385,-151.0,0.00013698,2]
[333995930,1722669045397,-151.0,0.00013698,2]
[333995932,1722669045411,-500.0,0.00013698,2]
[333995934,1722669045424,-151.0,0.00013698,2]
[333995936,1722669045437,-500.0,0.00013698,2]
[333995938,1722669045450,-500.0,0.00013698,2]
[333995941,1722669045462,-151.225038,0.00013698,2]
[333995943,1722669045476,-500.0,0.00013698,2]
[333995945,1722669045488,-500.0,0.00013698,2]
[333995948,1722669045500,-500.0,0.00013698,2]
[333995950,1722669045512,-1335.96,0.00013698,2]
[333995952,1722669045524,-636.37,0.00013698,2]
[333995954,1722669045537,-500.0,0.00013698,2]
[333995956,1722669045549,-500.0,0.00013698,2]
[333995958,1722669045561,-500.0,0.00013698,2]
[333995961,1722669045573,-500.0,0.00013698,2]
[333995963,1722669045585,-184.371412,0.00013698,2]
[333995965,1722669045598,-184.371412,0.00013698,2]
[333995967,1722669045612,-184.371412,0.00013698,2]
[333995970,1722669045625,-184.371412,0.00013698,2]
[333995972,1722669045638,-184.371412,0.00013698,2]
[333995974,1722669045650,-500.0,0.00013698,2]
[333995976,1722669045663,-500.0,0.00013698,2]
[333995979,1722669045676,-184.371412,0.00013698,2]
[333995981,1722669045689,-184.371412,0.00013698,2]
[333995983,1722669045702,-184.371412,0.00013698,2]
[333995986,1722669045714,-184.371412,0.00013698,2]
[333995987,1722669045728,-184.371412,0.00013698,2]
[333995988,1722669045741,-500.0,0.00013698,2]
[333995989,1722669045751,-184.371412,0.00013698,2]
[333995990,1722669045761,-184.371412,0.00013698,2]
[333995991,1722669045770,-184.371412,0.00013698,2]
[333995992,1722669045780,-500.0,0.00013698,2]
[333995993,1722669045790,-184.371412,0.00013698,2]
[333995994,1722669045799,-500.0,0.00013698,2]
[333995995,1722669045939,-184.371412,0.00013698,2]
[333995996,1722669045950,-500.0,0.00013698,2]
[333995997,1722669045960,-184.371412,0.00013698,2]
[333995998,1722669045969,-500.0,0.00013698,2]
[333995999,1722669045979,-1318.9,0.00013698,2]
[333996000,1722669045988,-184.371412,0.00013698,2]
[333996001,1722669045997,-500.0,0.00013698,2]
[333996002,1722669046007,-184.371412,0.00013698,2]
[333996003,1722669046017,-500.0,0.00013698,2]
[333996004,1722669046027,-508.67393863,0.00013698,2]
[333996005,1722669046036,-710.27,0.00013698,2]
[333996006,1722669046046,-503.16626666,0.00013698,2]
[333996007,1722669046056,-500.0,0.00013698,2]
[333996008,1722669046065,-775.8,0.00013698,2]
[333996009,1722669046075,-500.0,0.00013698,2]
[333996010,1722669046084,-501.04256428,0.00013698,2]
[333996011,1722669046094,-545.03813334,0.00013698,2]
[333996012,1722669046104,-500.0,0.00013698,2]
[333996013,1722669046115,-500.0,0.00013698,2]
[333996014,1722669046124,-796.72,0.00013698,2]
[333996015,1722669046134,-500.0,0.00013698,2]
[333996017,1722669046144,-500.0,0.00013698,2]
[333996018,1722669046154,-151.0,0.00013698,2]
[333996020,1722669046163,-151.0,0.00013698,2]
[333996021,1722669046173,-151.0,0.00013698,2]
[333996022,1722669046183,-151.0,0.00013698,2]
[333996023,1722669046192,-500.0,0.00013698,2]
[333996024,1722669046202,-151.0,0.00013698,2]
[333996025,1722669046211,-151.0,0.00013698,2]
[333996026,1722669046221,-151.0,0.00013698,2]
[333996027,1722669046230,-151.0,0.00013698,2]
[333996028,1722669046240,-500.0,0.00013698,2]
[333996029,1722669046251,-651.41029928,0.00013698,2]
[333996030,1722669046260,-500.0,0.00013698,2]
[333996031,1722669046269,-500.0,0.00013698,2]
[333996032,1722669046279,-500.0,0.00013698,2]
[333996033,1722669046288,-631.53,0.00013698,2]
[333996034,1722669046297,-500.0,0.00013698,2]
[333996035,1722669046307,-1918.16,0.00013698,2]
[333996036,1722669046316,-500.0,0.00013698,2]
[333996037,1722669046325,-500.0,0.00013698,2]
[333996038,1722669046337,-500.0,0.00013698,2]
[333996039,1722669046346,-300.0,0.00013698,2]
[333996040,1722669046356,-500.0,0.00013698,2]
[333996041,1722669046365,-500.0,0.00013698,2]
[333996042,1722669046376,-518.87141673,0.00013698,2]
[333996043,1722669046386,-500.0,0.00013698,2]
[333996044,1722669046395,-273.17894821,0.00013698,2]
[333996045,1722669046404,-500.0,0.00013698,2]
[333996046,1722669046416,-512.58577606,0.00013698,2]
[333996047,1722669046425,-294.838376,0.00013699,2]
[333996048,1722669046435,-151.0,0.00013699,2]
[333996049,1722669046446,-151.0,0.00013699,2]
[333996050,1722669046455,-239.262167,0.00013699,2]
[333996051,1722669046464,-151.0,0.00013699,2]
[333996052,1722669046474,-153.203548,0.00013699,2]
[333996053,1722669046483,-252.635338,0.00013699,2]
[333996054,1722669046492,-252.635338,0.00013699,2]
[333996055,1722669046502,-151.0,0.00013699,2]
[333996056,1722669046512,-186.993979,0.00013699,2]
[333996057,1722669046521,-186.993979,0.00013699,2]
[333996058,1722669046530,-510.47,0.00013699,2]
[333996059,1722669046539,-382.511128,0.00013699,2]
[333996060,1722669046548,-382.511128,0.00013699,2]
[333996061,1722669046558,-150.112233,0.000137,2]
[333996062,1722669046567,-150.112233,0.000137,2]
[333996063,1722669046576,-245.541958,0.000137,2]
[333996064,1722669046586,-245.541958,0.000137,2]
[333996065,1722669046597,-331.821012,0.000137,2]
[333996066,1722669046607,-331.821012,0.000137,2]
[333996067,1722669046617,-151.0,0.000137,2]
[333996068,1722669046628,-151.0,0.000137,2]
[333996069,1722669046639,-369.180768,0.000137,2]
[333996070,1722669046650,-369.180768,0.000137,2]
[333996071,1722669046661,-1152.50927085,0.000137,2]
[333996072,1722669046671,-409.248267,0.000137,2]
[333996073,1722669046680,-409.248276,0.000137,2]
[333996074,1722669046692,-295.183294,0.000137,2]
[333996075,1722669046703,-295.183296,0.000137,2]
[333996076,1722669046713,-151.0,0.000137,2]
[333996077,1722669046723,-675.511294,0.000137,2]
[333996078,1722669046734,-151.0,0.000137,2]
[333996079,1722669046747,-675.511304,0.000137,2]
[333996080,1722669046756,-252.635338,0.000137,2]
[333996081,1722669046767,-252.635328,0.000137,2]
[333996082,1722669046777,-151.0,0.000137,2]
[333996083,1722669046788,-186.993979,0.000137,2]
[333996085,1722669046800,-186.993986,0.000137,2]
[333996086,1722669046809,-382.511128,0.000137,2]
[333996087,1722669046819,-382.511138,0.000137,2]
[333996088,1722669046828,-151.0,0.000137,2]
[333996089,1722669046838,-151.02533888,0.00013773,2]
[333996090,1722669046848,-12511.7023949,0.00013789,2]
[333996091,1722669046857,-646.6,0.00013789,2]
[333996092,1722669046868,-510.47,0.00013789,2]
[333996093,1722669046879,-184.371412,0.00013789,2]
[333996094,1722669046888,-500.0,0.00013789,2]
[333996095,1722669046899,-184.371412,0.00013789,2]
[333996096,1722669046910,-151.0,0.0001379,2]
[333996097,1722669046919,-151.906928,0.0001379,2]
[333996098,1722669046929,-245.541958,0.0001379,2]
[333996099,1722669046938,-245.541958,0.0001379,2]
[333996100,1722669046948,-331.821012,0.0001379,2]
[333996101,1722669046958,-331.821012,0.0001379,2]
[333996102,1722669046967,-369.180768,0.0001379,2]
[333996103,1722669046977,-369.180761,0.0001379,2]
[333996104,1722669046986,-37535.1071848,0.0001379,2]
[333996105,1722669046996,-3726.52394767,0.00013799,5]
[333996106,1722669047255,-500.0,0.00013698,2]
[333996107,1722669047265,-500.0,0.00013698,2]
[333996108,1722669047277,-42.4726516,0.00013799,5]
[333996109,1722669047287,-646.6,0.00013799,2]
[333996110,1722669047299,-646.6,0.00013799,2]
[333996111,1722669047310,-646.6,0.00013799,2]
[333996112,1722669047323,-646.6,0.00013799,2]
[333996113,1722669047337,-510.47,0.00013799,2]
[333996114,1722669047347,-510.47,0.00013799,2]
[333996115,1722669047358,-510.47,0.00013799,2]
[333996116,1722669047367,-510.47,0.00013799,2]
[333996117,1722669047378,-510.47,0.00013799,2]
[333996118,1722669047389,-500.0,0.00013799,2]
[333996119,1722669047400,-500.0,0.00013799,2]
[333996120,1722669047415,-244.37823313,0.00013799,2]
[333996121,1722669047427,-167.40453351,0.00013799,2]
[333996122,1722669047438,-265.99778067,0.00013799,2]
[333996123,1722669047452,-474.2847289,0.00013799,2]
[333996124,1722669047463,-500.0,0.00013799,2]
[333996125,1722669047474,-500.0,0.00013799,2]
[333996126,1722669047485,-500.0,0.00013799,2]
[333996127,1722669047496,-500.0,0.00013799,2]
[333996128,1722669047507,-500.0,0.00013799,2]
[333996129,1722669047517,-379.66912639,0.00013799,2]
[333996130,1722669047531,-120.33087361,0.00013799,2]
[333996131,1722669047541,-500.0,0.00013799,2]
[333996132,1722669047551,-500.0,0.00013799,2]
[333996133,1722669047561,-114.72912639,0.00013799,2]
[333996134,1722669047735,-385.27087361,0.00013799,2]
[333996135,1722669047745,-170.80494631,0.00013799,2]
[333996136,1722669047754,-500.0,0.00013799,2]
[333996137,1722669047764,-41633.35827242,0.000138,2]
[333996138,1722669047776,-586.6757247,0.000138,2]
[333996139,1722669047787,-2335.74200014,0.000138,2]
[333996140,1722669048015,-504.77654297,0.00013698,2]
[333996141,1722669048025,-200.0,0.00013773,2]
[333996142,1722669048035,-113058.87135081,0.000138,2]
[333996143,1722669048045,-151.0,0.000138,2]
[333996144,1722669048054,-245.541958,0.000138,2]
[333996145,1722669048064,-245.541968,0.000138,2]
[333996146,1722669048074,-331.821012,0.000138,2]
[333996147,1722669048084,-331.821005,0.000138,2]
[333996148,1722669048094,-151.0,0.000138,2]
[333996149,1722669048104,-151.0,0.000138,2]
[333996150,1722669048113,-235.732354,0.000138,2]
[333996151,1722669048123,-206.9342036,0.000138,2]
[333996152,1722669048132,-206.9342036,0.000138,2]
[333996153,1722669048142,-206.9342036,0.000138,2]
[333996154,1722669048152,-646.6,0.0001396,2]
[333996155,1722669048162,-646.6,0.00013961,2]
[333996156,1722669048172,-510.47,0.00013961,2]
[333996157,1722669048182,-151.0,0.00013962,2]
[333996158,1722669048191,-37535.1071848,0.00013962,2]
[333996159,1722669048201,-646.6,0.00013971,2]
[333996160,1722669048210,-646.6,0.00013971,2]
[333996161,1722669048219,-646.6,0.00013971,2]
[333996162,1722669048230,-646.6,0.00013971,2]
[333996163,1722669048239,-510.47,0.00013971,2]
[333996164,1722669048249,-510.47,0.00013971,2]
[333996165,1722669048259,-510.47,0.00013971,2]
[333996166,1722669048268,-510.47,0.00013971,2]
[333996167,1722669048278,-510.47,0.00013971,2]
[333996168,1722669048287,-510.47,0.00013971,2]
[333996169,1722669048297,-510.57118255,0.00013971,2]
[333996170,1722669048306,-300.87050798,0.00013972,2]
[333996171,1722669048315,-500.0,0.00013972,2]
[333996172,1722669048324,-500.0,0.00013972,2]
[333996173,1722669048336,-527.27,0.00013972,2]
[333996174,1722669048346,-506.84096993,0.00013972,2]
[333996175,1722669048355,-500.0,0.00013972,2]
[333996176,1722669048366,-500.0,0.00013972,2]
[333996177,1722669048377,-500.0,0.00013972,2]
[333996178,1722669048387,-500.0,0.00013972,2]
[333996179,1722669048397,-511.7425947,0.00013972,2]
[333996180,1722669048406,-500.0,0.00013972,2]
[333996181,1722669048418,-500.0,0.00013972,2]
[333996182,1722669048430,-500.0,0.00013972,2]
[333996183,1722669048440,-715.36,0.00013972,2]
[333996184,1722669048451,-500.0,0.00013972,2]
[333996185,1722669048460,-503.75348764,0.00013972,2]
[333996186,1722669048471,-500.0,0.00013972,2]
[333996187,1722669048483,-500.0,0.00013972,2]
[333996188,1722669048493,-500.0,0.00013972,2]
[333996189,1722669048503,-500.0,0.00013972,2]
[333996190,1722669048514,-500.0,0.00013972,2]
[333996191,1722669048523,-504.37487459,0.00013972,2]
[333996192,1722669048533,-509.75640467,0.00013972,2]
[333996193,1722669048543,-500.0,0.00013972,2]
[333996194,1722669048554,-500.0,0.00013972,2]
[333996195,1722669048565,-500.0,0.00013972,2]
[333996196,1722669048576,-500.0,0.00013972,2]
[333996197,1722669048587,-435.11155311,0.00013972,2]
[333996198,1722669048597,-500.0,0.00013972,2]
[333996199,1722669048606,-157.9449157,0.00013972,2]
[333996200,1722669048616,-500.0,0.00013972,2]
[333996201,1722669048626,-500.0,0.00013972,2]
[333996202,1722669048635,-500.0,0.00013972,2]
[333996203,1722669048645,-526.58,0.00013972,2]
[333996204,1722669048655,-500.0,0.00013972,2]
[333996205,1722669048664,-500.0,0.00013972,2]
[333996206,1722669048674,-500.63031675,0.00013972,2]
[333996207,1722669048684,-506.8647543,0.00013972,2]
[333996208,1722669048693,-500.0,0.00013972,2]
[333996209,1722669048703,-500.0,0.00013972,2]
[333996210,1722669048713,-500.0,0.00013972,2]
[333996211,1722669048722,-500.0,0.00013972,2]
[333996212,1722669048731,-500.0,0.00013972,2]
[333996213,1722669048741,-500.0,0.00013972,2]
[333996214,1722669048752,-637.99,0.00013972,2]
[333996215,1722669048762,-500.0,0.00013972,2]
[333996216,1722669048771,-500.0,0.00013972,2]
[333996217,1722669048781,-506.10299471,0.00013972,2]
[333996218,1722669048792,-500.0,0.00013972,2]
[333996219,1722669048802,-500.0,0.00013972,2]
[333996220,1722669048812,-506.23652616,0.00013972,2]
[333996221,1722669048822,-500.0,0.00013972,2]
[333996222,1722669048832,-500.0,0.00013972,2]
[333996223,1722669048842,-907.8,0.00013972,2]
[333996224,1722669048852,-404.00296776,0.00013972,2]
[333996225,1722669048862,-500.0,0.00013972,2]
[333996226,1722669048873,-500.0,0.00013972,2]
[333996227,1722669048883,-500.0,0.00013972,2]
[333996228,1722669048893,-500.0,0.00013972,2]
[333996229,1722669048904,-504.09025349,0.00013972,2]
[333996230,1722669048915,-500.0,0.00013972,2]
[333996231,1722669048926,-500.0,0.00013972,2]
[333996232,1722669048938,-500.0,0.00013972,2]
[333996233,1722669048950,-230.55639362,0.00013972,2]
[333996234,1722669050721,500.0,0.0001352,2]
[333996235,1722669051473,500.0,0.0001352,2]
[333996236,1722669052258,500.0,0.0001352,2]
[333996237,1722669053022,500.0,0.0001352,2]
[333996238,1722669053784,500.0,0.0001352,2]
[333996239,1722669054538,500.0,0.0001352,2]
[333996240,1722669055300,500.0,0.0001352,2]
[333996241,1722669056063,500.0,0.0001352,2]
[333996242,1722669056835,208.31,0.0001352,2]
[333996243,1722669060197,200.0,0.00013571,2]
[333996244,1722669062824,165.96158349,0.00013571,2]
[333996245,1722669062856,25026.02334596,0.00013571,2]
[333996246,1722669062881,2756.86148295,0.00013571,2]
[333996247,1722669070874,154.85288975,0.00027,120]
[333996248,1722669085825,154.85288975,0.00027,120]
[333996249,1722669088095,500.0,0.00012972,2]
[333996250,1722669088739,194.66985458,0.00012972,2]
[333996251,1722669088769,305.33014542,0.00012972,2]
[333996252,1722669089497,500.0,0.00012972,2]
[333996253,1722669090248,500.0,0.00012972,2]
[333996254,1722669090992,500.0,0.00012972,2]
[333996255,1722669092827,500.0,0.00012972,2]
[333996256,1722669093581,500.0,0.00012972,2]
[333996257,1722669094347,500.0,0.00012972,2]
[333996258,1722669095107,500.0,0.00012972,2]
[333996259,1722669095869,500.0,0.00012972,2]
[333996260,1722669096631,500.0,0.00012972,2]
[333996261,1722669097388,500.0,0.00012972,2]
[333996262,1722669098951,500.0,0.00012972,2]
[333996263,1722669099685,48.88319115,0.00012972,2]
[333996264,1722669099712,451.11680885,0.00012972,2]
[333996265,1722669100440,500.0,0.00012972,2]
[333996266,1722669101703,500.0,0.00012972,2]
[333996267,1722669102381,500.0,0.00012972,2]
[333996268,1722669103134,500.0,0.00012972,2]
[333996269,1722669104009,500.0,0.00012972,2]
[333996270,1722669104773,500.0,0.00012972,2]
[333996271,1722669105539,308.7129455,0.00012972,2]
[333996272,1722669219002,206.79567801,9.999e-05,2]
[333996274,1722669303170,761.0,0.00027,120]
[333996278,1722669588139,1000.0,0.00027,120]
[333996279,1722669614088,1000.0,0.00025,60]
[333996281,1722669683056,-300.0,0.00012971,2]
[333996282,1722669683083,-191.2870545,0.00012972,2]
[333996283,1722669683107,-500.0,0.00012972,2]
[333996284,1722669683131,-500.0,0.00012972,2]
[333996285,1722669683156,-500.0,0.00012972,2]
[333996286,1722669683180,-500.0,0.00012972,2]
[333996287,1722669683204,-500.0,0.00012972,2]
[333996288,1722669683227,-500.0,0.00012972,2]
[333996289,1722669683251,-500.0,0.00012972,2]
[333996290,1722669683275,-500.0,0.00012972,2]
[333996291,1722669683298,-500.0,0.00012972,2]
[333996292,1722669683433,-500.0,0.00012972,2]
[333996293,1722669683459,-500.0,0.00012972,2]
[333996294,1722669683483,-500.0,0.00012972,2]
[333996295,1722669683509,-500.0,0.00012972,2]
[333996296,1722669683537,-500.0,0.00012972,2]
[333996297,1722669683564,-500.0,0.00012972,2]
[333996298,1722669683589,-500.0,0.00012972,2]
[333996299,1722669683617,-500.0,0.00012972,2]
[333996300,1722669683647,-500.0,0.00012972,2]
[333996301,1722669683673,-500.0,0.00012972,2]
[333996302,1722669683701,-500.0,0.00012972,2]
[333996303,1722669683728,-500.0,0.00012972,2]
[333996304,1722669683754,-444.42,0.00012972,2]
[333996305,1722669683779,-200.0,0.00012972,2]
[333996306,1722669683823,-300.0,0.00012972,2]
[333996307,1722669683850,-161.888552,0.00012986,2]
[333996308,1722669683876,-1000.0,0.00013,13]
[333996309,1722669683903,-3289.8510351,0.00013498,2]
[333996310,1722669683925,-3000.0,0.0001359,2]
[333996311,1722669683952,-152.39072821,0.00013598,2]
[333996312,1722669683978,-95.86968469,0.00013598,2]
[333996313,1722669684024,-6306.71123754,0.00013598,2]
[333996314,1722669684056,-500.0,0.00013598,2]
[333996315,1722669684084,-200.0,0.00013598,2]
[333996316,1722669721019,300.0,0.00013597,2]
[333996317,1722669858510,2878.61965566,0.00013589,2]
[333996318,1722669894470,152.39072817,0.00013598,2]
[333996320,1722670050179,161.888552,0.00012986,2]
[333996321,1722670069869,500.0,0.00013597,2]
[333996324,1722670104786,346.69954113,0.000125,2]
[333996325,1722670125628,18084.18408424,0.00023,120]
[333996326,1722670127493,187.57044156,0.00025,120]
[333996327,1722670143273,2518.79219872,0.00013589,2]
[333996362,1722670232601,-8000.0,0.00013615,2]
[333996364,1722670232613,-200.0,0.00013673,2]
[333996366,1722670232624,-300.0,0.00013685,2]
[333996368,1722670232636,-19719.20039312,0.00013686,2]
[333996369,1722670232648,-47060.1537867,0.00013688,2]
[333996370,1722670232658,-152.39072817,0.00013689,2]
[333996371,1722670232672,-5000.0,0.0001369,2]
[333996373,1722670232682,-500.0,0.00013697,2]
[333996375,1722670232691,-500.0,0.00013697,2]
[333996376,1722670232701,-500.0,0.00013697,2]
[333996378,1722670232713,-500.71650985,0.00013698,2]
[333996381,1722670232729,-500.0,0.00013698,2]
[333996385,1722670232740,-500.0,0.00013698,2]
[333996387,1722670232751,-500.0,0.00013698,2]
[333996388,1722670232762,-500.0,0.00013698,2]
[333996390,1722670232772,-500.0,0.00013698,2]
[333996393,1722670232782,-500.0,0.00013698,2]
[333996394,1722670232792,-303.31713371,0.00013698,2]
[333996407,1722670238914,-196.68286629,0.00013698,2]
[333996408,1722670238924,-445.78713371,0.00013698,2]
[333996409,1722670238963,-54.21286629,0.00013698,2]
[333996411,1722670238974,-500.0,0.00013698,2]
[333996412,1722670238984,-500.0,0.00013698,2]
[333996414,1722670238995,-202.21917248,0.00013698,2]
[333996416,1722670239005,-685.65,0.00013698,2]
[333996418,1722670239015,-500.0,0.00013698,2]
[333996420,1722670239025,-345.54163527,0.00013698,2]
[333996422,1722670239036,-500.0,0.00013698,2]
[333996423,1722670239045,-500.0,0.00013698,2]
[333996425,1722670239056,-500.0,0.00013698,2]
[333996427,1722670239065,-500.0,0.00013698,2]
[333996429,1722670239075,-500.0,0.00013698,2]
[333996431,1722670239085,-500.0,0.00013698,2]
[333996433,1722670239094,-500.0,0.00013698,2]
[333996435,1722670239107,-500.0,0.00013698,2]
[333996438,1722670239124,-503.0087459,0.00013698,2]
[333996440,1722670239138,-500.0,0.00013698,2]
[333996442,1722670239151,-503.4325015,0.00013698,2]
[333996444,1722670239163,-597.16655605,0.00013698,2]
[333996447,1722670239176,-500.0,0.00013698,2]
[333996449,1722670239189,-500.0,0.00013698,2]
[333996451,1722670239202,-500.0,0.00013698,2]
[333996454,1722670239217,-500.0,0.00013698,2]
[333996456,1722670239231,-443.54149847,0.00013698,2]
[333996459,1722670239244,-184.18705617,0.00013698,2]
[333996461,1722670239258,-522.31356701,0.00013698,2]
[333996463,1722670239272,-500.0,0.00013698,2]
[333996466,1722670239285,-500.0,0.00013698,2]
[333996468,1722670239299,-503.37012291,0.00013698,2]
[333996470,1722670239312,-500.0,0.00013698,2]
[333996472,1722670239327,-503.9952865,0.00013698,2]
[333996475,1722670239340,-500.0,0.00013698,2]
[333996477,1722670239352,-500.0,0.00013698,2]
[333996479,1722670239367,-500.0,0.00013698,2]
[333996481,1722670239378,-500.02586365,0.00013698,2]
[333996484,1722670239390,-500.0,0.00013698,2]
[333996486,1722670239401,-509.93603188,0.00013698,2]
[333996488,1722670239414,-509.93525858,0.00013698,2]
[333996490,1722670239426,-503.3226659,0.00013698,2]
[333996493,1722670239440,-500.0,0.00013698,2]
[333996495,1722670239453,-501.99856816,0.00013698,2]
[333996497,1722670239466,-500.0,0.00013698,2]
[333996500,1722670239479,-500.0,0.00013698,2]
[333996502,1722670239494,-500.0,0.00013698,2]
[333996504,1722670239505,-500.0,0.00013698,2]
[333996506,1722670239515,-500.0,0.00013698,2]
[333996508,1722670239525,-503.70317355,0.00013698,2]
[333996510,1722670239537,-543.10242154,0.00013698,2]
[333996512,1722670239550,-501.58892371,0.00013698,2]
[333996514,1722670239564,-514.90195416,0.00013698,2]
[333996517,1722670239579,-500.0,0.00013698,2]
[333996519,1722670239589,-501.01393807,0.00013698,2]
[333996521,1722670239604,-500.0,0.00013698,2]
[333996523,1722670239616,-501.02669427,0.00013698,2]
[333996526,1722670239629,-500.0,0.00013698,2]
[333996528,1722670239643,-502.33360217,0.00013698,2]
[333996530,1722670239654,-506.02308493,0.00013698,2]
[333996533,1722670239665,-500.0,0.00013698,2]
[333996535,1722670239677,-500.80186033,0.00013698,2]
[333996537,1722670239688,-508.08071063,0.00013698,2]
[333996539,1722670239700,-512.87472869,0.00013698,2]
[333996541,1722670239713,-504.91443185,0.00013698,2]
[333996544,1722670239730,-500.0,0.00013698,2]
[333996545,1722670239742,-500.0,0.00013698,2]
[333996546,1722670239753,-500.0,0.00013698,2]
[333996547,1722670239768,-501.28911878,0.00013698,2]
[333996548,1722670239781,-500.0,0.00013698,2]
[333996549,1722670239794,-500.0,0.00013698,2]
[333996550,1722670239807,-505.5090072,0.00013698,2]
[333996551,1722670239820,-500.0,0.00013698,2]
[333996552,1722670239832,-501.04584901,0.00013698,2]
[333996553,1722670239843,-151.830209,0.00013698,2]
[333996554,1722670239855,-500.0,0.00013698,2]
[333996555,1722670239867,-501.81288566,0.00013698,2]
[333996556,1722670239879,-383.2498869,0.00013698,2]
[333996557,1722670239890,-500.0,0.00013698,2]
[333996558,1722670239903,-502.71709055,0.00013698,2]
[333996559,1722670239915,-500.0,0.00013698,2]
[333996560,1722670239926,-500.0,0.00013698,2]
[333996561,1722670239938,-500.0,0.00013698,2]
[333996562,1722670239949,-500.0,0.00013698,2]
[333996563,1722670239960,-500.0,0.00013698,2]
[333996564,1722670239971,-225.39159938,0.00013698,2]
[333996565,1722670239983,-503.88063968,0.00013698,2]
[333996566,1722670239995,-500.0,0.00013698,2]
[333996567,1722670240008,-500.0,0.00013698,2]
[333996568,1722670240019,-1333.77,0.00013698,2]
[333996569,1722670240031,-500.0,0.00013698,2]
[333996570,1722670240042,-500.0,0.00013698,2]
[333996571,1722670240055,-516.84735028,0.00013698,2]
[333996572,1722670240066,-500.0,0.00013698,2]
[333996573,1722670240086,-500.0,0.00013698,2]
[333996575,1722670240097,-500.0,0.00013698,2]
[333996576,1722670240109,-500.0,0.00013698,2]
[333996577,1722670240120,-500.0,0.00013698,2]
[333996578,1722670240132,-151.259361,0.00013698,2]
[333996579,1722670240143,-501.13126224,0.00013698,2]
[333996580,1722670240156,-506.63878692,0.00013698,2]
[333996581,1722670240168,-500.0,0.00013698,2]
[333996582,1722670240181,-784.62,0.00013698,2]
[333996583,1722670240192,-500.0,0.00013698,2]
[333996584,1722670240204,-500.0,0.00013698,2]
[333996585,1722670240216,-502.4353529,0.00013698,2]
[333996586,1722670240227,-500.0,0.00013698,2]
[333996587,1722670240239,-502.89026368,0.00013698,2]
[333996588,1722670240250,-500.0,0.00013698,2]
[333996589,1722670240261,-505.40712946,0.00013698,2]
[333996590,1722670240274,-500.0,0.00013698,2]
[333996603,1722670240285,-500.0,0.00013698,2]
[333996606,1722670240431,-500.0,0.00013698,2]
[333996608,1722670240441,-151.0,0.00013698,2]
[333996610,1722670240451,-527.9305888,0.00013698,2]
[333996612,1722670240460,-151.0,0.00013698,2]